bitfinex-derivatives/quotes_ETHF0:USTF0_20250817
["timestamp","ask_amount","ask_price","bid_price","bid_amount"]
[1755433025341,1.4261,4543.2,4543.1,0.09905022]
[1755433025544,0.5912,4542.2,4542.1,3.2078]
[1755433025745,1.4544,4542.2,4542.1,24.3433]
[1755433025949,0.8443,4543.1,4543.0,0.3278]
[1755433026247,0.2531,4543.1,4543.0,21.1355]
[1755433026447,3.4609,4543.4,4543.3,0.845]
[1755433026641,3.4609,4543.4,4543.3,21.1355]
[1755433028355,3.2078,4543.4,4543.3,21.1355]
[1755433028845,3.2078,4543.4,4543.3,21.1575]
[1755433029052,0.2531,4543.9,4543.8,1.49045]
[1755433029053,3.4609,4543.9,4543.8,1.49045]
[1755433029241,3.4609,4543.9,4543.8,21.57645]
[1755433029750,3.2078,4543.9,4543.8,21.57645]
[1755433030549,0.1,4544.2,4544.1,1.23242]
[1755433030752,0.1,4544.2,4544.1,21.31742]
[1755433031054,1.026,4544.7,4544.6,1.02687]
[1755433031348,3.2078,4544.8,4544.6,21.31737]
[1755433031651,3.4609,4544.8,4544.7,0.7925]
[1755433032348,4.2338,4544.8,4544.7,0.7925]
[1755433032744,4.6622,4544.8,4544.7,0.7925]
[1755433032945,3.2078,4544.8,4544.7,0.7925]
[1755433033450,4.2338,4544.8,4544.7,0.7925]
[1755433033850,4.6622,4544.8,4544.7,0.587]
[1755433035854,0.2531,4544.8,4544.7,0.7925]
[1755433036052,0.2531,4545.1,4545.0,0.16]
[1755433036249,0.2531,4545.1,4545.0,24.0803]
[1755433036454,0.2531,4545.1,4545.0,24.52013]
[1755433036851,0.6061,4545.1,4545.0,24.52013]
[1755433037057,1.1973,4545.1,4545.0,23.2878]
[1755433037261,1.4544,4545.0,4544.9,0.427]
[1755433037558,1.4544,4545.0,4544.9,20.507]
[1755433037854,1.4544,4545.0,4544.9,20.667]
[1755433038357,1.4719,4545.1,4545.0,0.5924]
[1755433038555,1.4719,4545.1,4545.0,3.8002]
[1755433040053,3.2078,4546.0,4545.0,3.8002]
[1755433040259,1.0905,4545.5,4545.4,1.03219]
[1755433040451,1.4719,4545.5,4545.4,21.11119]
[1755433041351,3.5308,4546.5,4546.4,0.4397]
[1755433041551,4.163,4546.5,4546.4,20.6714]
[1755433041952,4.6797,4546.5,4546.4,20.6714]
[1755433042159,4.6797,4546.5,4546.4,20.5042]
[1755433042457,4.6797,4546.5,4546.4,20.6714]
[1755433042656,1.4719,4546.5,4546.4,20.6714]
[1755433044760,1.4719,4546.5,4546.4,20.2471]
[1755433044956,1.4719,4546.5,4546.4,20.6714]
[1755433046256,1.4719,4546.5,4546.4,20.5042]
[1755433046457,0.1572,4545.9,4545.8,0.43975]
[1755433046658,0.8981,4545.8,4545.3,3.6476]
[1755433046870,1.4719,4545.4,4545.3,4.24]
[1755433047161,1.4719,4545.4,4545.3,24.315]
[1755433047565,1.4719,4545.4,4545.3,23.4509]
[1755433047862,1.4719,4545.4,4545.3,23.708]
[1755433048059,1.4719,4545.4,4545.3,23.2818]
[1755433049666,1.4719,4545.4,4545.3,23.4499]
[1755433049966,1.4719,4545.4,4545.3,23.707]
[1755433052063,1.4719,4545.4,4545.3,23.8742]
[1755433052868,0.4166,4545.7,4545.6,0.7973]
[1755433053168,0.8981,4546.5,4545.6,20.2789]
[1755433053357,3.2078,4546.6,4546.0,0.43973]
[1755433053662,1.4719,4546.1,4546.0,1.03213]
[1755433053864,1.4719,4546.1,4546.0,20.6664]
[1755433054166,0.6674,4546.1,4546.0,20.6664]
[1755433054370,0.6674,4546.1,4546.0,20.8713]
[1755433054664,1.4719,4546.1,4546.0,20.6664]
[1755433056265,1.4719,4546.1,4545.8,3.2078]
[1755433056464,0.8981,4545.9,4545.6,0.60787]
[1755433056766,1.4719,4545.7,4545.6,1.03217]
[1755433057464,0.2508,4545.7,4545.6,21.31007]
[1755433057666,1.4719,4546.4,4546.3,0.5924]
[1755433057966,1.4719,4546.4,4546.3,20.6654]
[1755433058163,1.4719,4546.4,4546.3,20.2411]
[1755433058463,1.4719,4546.4,4546.3,20.073]
[1755433062269,1.66504727,4546.4,4546.3,20.3301]
[1755433063967,0.6408,4546.3,4545.3,3.2078]
[1755433064171,1.4719,4545.8,4545.7,20.93696]
[1755433064867,1.4719,4545.8,4545.7,20.4972]
[1755433065475,1.4719,4545.8,4545.7,20.072]
[1755433066073,1.4719,4545.7,4545.6,20.071]
[1755433066770,1.4719,4545.7,4545.6,20.3281]
[1755433066970,1.4719,4545.7,4545.6,20.4962]
[1755433067776,1.4719,4545.7,4545.6,20.6634]
[1755433069779,1.4719,4545.7,4545.6,20.071]
[1755433071173,1.66501222,4545.7,4545.6,20.071]
[1755433073780,1.66501222,4545.7,4545.6,20.4798]
[1755433074277,3.45,4545.9,4545.6,20.6416]
[1755433074581,0.43953936,4545.8,4545.7,0.7759]
[1755433074881,1.65823936,4545.8,4545.7,0.7759]
[1755433075077,1.65823936,4545.8,4545.7,0.5706]
[1755433075875,1.65823936,4545.8,4545.7,0.4088]
[1755433076075,1.65823936,4545.8,4545.7,20.072]
[1755433076380,2.2911311,4545.8,4545.7,20.072]
[1755433077078,2.2911311,4545.8,4545.7,20.4808]
[1755433077777,2.29113335,4545.8,4545.7,20.4808]
[1755433077969,2.29113335,4545.8,4545.7,20.2455]
[1755433078169,2.29113335,4545.8,4545.7,20.072]
[1755433078777,2.09799399,4545.8,4545.7,20.072]
[1755433078978,2.29062954,4545.8,4545.7,20.072]
[1755433079378,1.4651,4545.0,4544.9,0.1735]
[1755433079571,0.8907,4544.9,4544.3,0.2353]
[1755433079775,1.4651,4544.4,4544.3,0.5706]
[1755433079976,1.4651,4544.4,4544.3,20.6426]
[1755433080376,3.97487011,4544.4,4543.9,0.2353]
[1755433080571,0.6579,4543.5,4543.4,3.2078]
[1755433080777,1.4651,4543.5,4543.4,20.071]
[1755433080978,1.4651,4543.5,4543.4,20.3063]
[1755433081176,0.2593,4543.4,4543.1,0.09905022]
[1755433081481,1.4651,4543.2,4543.1,20.74165022]
[1755433081693,1.65778761,4543.2,4543.1,20.74165022]
[1755433081974,1.4651,4543.2,4543.1,20.74165022]
[1755433082775,1.4651,4543.2,4543.1,20.57985022]
[1755433083882,1.4651,4543.2,4543.1,20.34455022]
[1755433084175,1.4651,4543.2,4543.1,0.09905022]
[1755433086384,1.4651,4543.2,4543.1,0.66965022]
[1755433088371,1.4651,4543.2,4543.1,0.87495022]
[1755433088575,0.6579,4543.2,4543.1,0.87495022]
[1755433088780,1.2058,4543.2,4543.1,0.87495022]
[1755433088977,1.4651,4543.2,4543.1,0.66965022]
[1755433089982,3.2078,4544.0,4543.3,0.44]
[1755433090183,0.4157,4543.4,4543.3,1.2159]
[1755433090384,0.6579,4543.4,4543.3,20.8539]
[1755433090681,1.2058,4543.4,4543.3,20.8539]
[1755433090882,0.6579,4543.4,4543.3,20.8539]
[1755433091886,1.0429,4543.4,4543.3,20.8539]
[1755433092182,0.6579,4543.4,4543.3,21.2939]
[1755433092383,4.4265,4544.0,4543.9,0.5706]
[1755433092973,4.6729,4544.0,4543.9,0.5706]
[1755433094976,4.6729,4544.0,4543.9,0.1735]
[1755433095176,4.2879,4544.0,4543.1,0.09905022]
[1755433095379,0.5744,4543.3,4543.2,20.6486]
[1755433095586,1.4651,4543.3,4543.2,20.6486]
[1755433096187,1.4651,4543.3,4543.2,20.8539]
[1755433096487,1.2058,4543.3,4543.2,20.8539]
[1755433097885,0.6579,4543.3,4543.2,20.8539]
[1755433098085,0.4057,4543.6,4543.5,0.3339]
[1755433098287,1.0006,4543.6,4543.5,0.5822]
[1755433098682,1.4228,4543.6,4543.5,0.5822]
[1755433099688,1.173,4543.6,4543.5,0.5822]
[1755433099882,1.173,4543.6,4543.5,0.7878]
[1755433100187,1.173,4543.6,4543.5,0.5822]
[1755433100391,1.4228,4543.6,4543.5,0.5822]
[1755433101877,0.7657,4543.8,4543.7,0.3339]
[1755433102088,0.7657,4543.8,4543.7,0.7878]
[1755433102486,1.0006,4543.8,4543.7,0.7878]
[1755433102685,1.4228,4543.8,4543.7,0.5822]
[1755433103592,1.4228,4543.8,4543.4,0.43998]
[1755433103895,0.5781,4543.7,4543.6,0.5822]
[1755433104486,1.4228,4543.7,4543.6,0.5822]
[1755433106789,1.4228,4543.7,4543.6,0.7877]
[1755433106989,0.1586,4543.8,4543.7,1.06716]
[1755433107192,1.0006,4543.8,4543.7,0.5822]
[1755433107393,1.0006,4543.8,4543.7,0.7877]
[1755433107594,1.2504,4543.8,4543.7,0.7877]
[1755433107793,1.4228,4543.8,4543.7,0.7877]
[1755433109296,1.61603937,4543.8,4543.7,0.7877]
[1755433109483,2.00097423,4543.8,4543.7,0.7877]
[1755433110192,0.82797423,4543.8,4543.7,0.7877]
[1755433110394,1.06287423,4543.8,4543.7,0.7877]
[1755433110893,2.00097423,4543.8,4543.7,0.7877]
[1755433111095,2.25077423,4543.8,4543.7,0.5822]
[1755433111895,1.06287423,4543.8,4543.7,0.5822]
[1755433112088,1.06287423,4543.8,4543.7,0.7877]
[1755433112292,1.82857423,4543.8,4543.7,0.7877]
[1755433112690,2.25077423,4543.8,4543.7,0.7877]
[1755433113091,1.82857423,4543.8,4543.7,0.7877]
[1755433113295,0.67523937,4543.8,4543.7,0.7877]
[1755433113592,0.482,4544.3,4543.8,1.09988]
[1755433113791,1.173,4544.3,4544.2,0.5822]
[1755433113990,2.00099259,4544.3,4544.2,0.7877]
[1755433114187,0.83383079,4544.3,4544.2,1.22761]
[1755433114496,0.83384486,4544.3,4544.2,1.22761]
[1755433114691,0.2349,4544.3,4544.2,1.02211]
[1755433114896,1.61598208,4544.3,4544.2,1.02211]
[1755433116496,1.4228,4544.3,4544.2,1.02211]
[1755433117497,1.4228,4544.3,4544.2,1.22761]
[1755433118492,1.4228,4544.3,4544.2,21.09711]
[1755433118697,1.4228,4544.2,4544.1,20.51391]
[1755433118891,1.4228,4544.2,4544.1,20.92271]
[1755433119291,1.4228,4544.2,4544.1,21.09611]
[1755433121295,1.173,4544.2,4544.1,1.02211]
[1755433121487,1.4228,4544.1,4544.0,20.073]
[1755433122187,1.61598459,4544.1,4543.7,0.2483]
[1755433122393,0.8447,4543.8,4543.3,0.6883]
[1755433122698,1.4228,4543.4,4543.3,1.0222]
[1755433122887,1.4228,4543.4,4543.3,21.0952]
[1755433123294,0.6098,4544.0,4543.5,0.43998]
[1755433123497,1.4228,4543.6,4543.5,0.5822]
[1755433124091,1.4228,4543.6,4543.5,0.3339]
[1755433124288,1.4228,4543.6,4543.5,20.2335]
[1755433124589,0.5781,4543.3,4543.1,0.09905022]
[1755433124895,1.6159671,4543.2,4543.1,0.09905022]
[1755433127093,1.6159671,4543.2,4543.1,0.50785022]
[1755433127998,1.6159671,4543.2,4543.1,0.09905022]
[1755433129691,1.3583671,4543.2,4543.1,0.67795022]
[1755433130095,1.3583671,4543.2,4543.1,0.88305022]
[1755433130300,1.5989671,4543.2,4543.1,0.67795022]
[1755433131502,1.4058,4543.2,4543.1,0.67795022]
[1755433133495,1.4058,4543.2,4543.1,0.51365022]
[1755433135701,1.4058,4543.2,4543.1,0.67795022]
[1755433140602,0.4086,4543.6,4543.5,0.1696]
[1755433140804,0.408,4543.7,4543.6,0.4093]
[1755433140994,3.2078,4544.1,4544.0,0.784]
[1755433141199,3.4602,4544.1,4544.0,20.858]
[1755433141597,4.6303,4544.1,4544.0,20.858]
[1755433142007,4.2204,4544.1,4544.0,20.858]
[1755433142307,0.2524,4544.1,4544.0,20.858]
[1755433143198,0.6046,4544.7,4544.1,0.43992]
[1755433143405,1.4225,4544.7,4544.6,0.3339]
[1755433143598,2.24974237,4544.7,4544.6,0.5789]
[1755433144007,2.24974716,4544.7,4544.6,0.4146]
[1755433144204,2.24974716,4544.7,4544.4,20.074]
[1755433144404,0.5773,4544.5,4544.4,20.074]
[1755433144604,1.61576219,4544.5,4544.4,20.074]
[1755433144800,1.61576219,4544.5,4544.4,20.2436]
[1755433145103,1.61576219,4544.5,4544.4,0.5789]
[1755433145299,0.77056219,4544.5,4544.3,20.073]
[1755433145502,1.61576219,4544.4,4544.3,20.4876]
[1755433146211,1.61576219,4544.4,4544.3,20.2426]
[1755433146405,0.68496219,4544.4,4544.3,20.4876]
[1755433146707,0.2524,4544.6,4544.4,0.4501]
[1755433147012,0.2524,4544.6,4544.5,1.22388]
[1755433147713,0.6604,4544.6,4544.5,1.22388]
[1755433148306,1.0126,4544.6,4544.5,1.22388]
[1755433150413,1.4225,4544.6,4544.5,1.01878]
[1755433150614,1.4225,4544.6,4544.5,0.5789]
[1755433151009,1.4225,4544.6,4544.5,20.6479]
[1755433151309,1.2538,4544.0,4543.9,1.01884]
[1755433151514,1.4225,4544.0,4543.9,21.08784]
[1755433152713,1.0126,4544.0,4543.9,21.29294]
[1755433152907,0.6604,4544.0,4543.9,21.29294]
[1755433154711,1.1819,4544.7,4544.6,0.3339]
[1755433154911,1.4225,4544.7,4544.6,20.6469]
[1755433155119,1.61570495,4544.7,4544.6,20.068]
[1755433155316,1.61570495,4544.7,4544.2,0.245]
[1755433155518,0.5773,4544.4,4544.3,20.068]
[1755433155714,1.4225,4544.4,4544.3,20.068]
[1755433156121,1.4225,4544.4,4544.3,20.313]
[1755433156320,1.4225,4544.4,4544.3,20.4826]
[1755433157226,1.4225,4544.4,4544.3,20.068]
[1755433157422,1.4225,4544.4,4544.3,20.4826]
[1755433158225,1.4225,4544.4,4544.3,20.6469]
[1755433158726,1.4225,4544.4,4544.3,20.4826]
[1755433159226,1.4225,4544.4,4544.3,20.068]
[1755433159819,0.6163,4544.3,4543.8,3.2078]
[1755433160025,0.5627,4543.7,4543.6,20.067]
[1755433160328,1.4233,4543.7,4543.6,20.067]
[1755433161329,1.4233,4543.7,4543.6,20.6287]
[1755433162225,0.6377,4543.7,4543.6,20.8336]
[1755433162424,0.4774,4543.7,4543.6,20.8336]
[1755433163128,1.4233,4543.7,4543.6,20.8336]
[1755433163327,1.4233,4543.7,4543.6,20.6287]
[1755433166030,1.4233,4543.7,4543.6,20.8336]
[1755433166237,1.179,4543.7,4543.6,20.8336]
[1755433166429,0.6377,4543.7,4543.6,20.8336]
[1755433166732,0.4774,4543.7,4543.6,20.8336]
[1755433166932,0.6377,4543.7,4543.6,20.8336]
[1755433167122,1.4233,4543.7,4543.6,20.067]
[1755433167327,1.61705464,4543.7,4543.6,20.6287]
[1755433168130,1.21125464,4543.7,4543.6,20.6287]
[1755433168329,1.4233,4543.7,4543.6,20.6287]
[1755433168530,1.6171238,4543.7,4543.6,20.6287]
[1755433170329,1.6171238,4543.7,4543.6,20.2246]
[1755433170529,1.6171238,4543.7,4543.6,20.4649]
[1755433170730,1.6171238,4543.7,4543.6,20.6287]
[1755433171434,1.61716221,4543.7,4543.6,20.6287]
[1755433172230,0.83156221,4543.7,4543.6,20.6287]
[1755433172531,1.61716221,4543.7,4543.6,20.6287]
[1755433172728,1.21136221,4543.7,4543.6,20.8336]
[1755433172928,1.61716221,4543.7,4543.6,20.8336]
[1755433173128,1.61716221,4543.7,4543.6,20.6287]
[1755433174424,1.61713702,4543.7,4543.6,20.6287]
[1755433174938,1.61713702,4543.7,4543.6,20.067]
[1755433175133,1.4233,4543.2,4543.1,0.09905022]
[1755433175432,1.61715482,4543.2,4543.1,0.09905022]
[1755433177037,2.25205441,4543.2,4543.1,0.09905022]
[1755433177230,1.61715482,4543.2,4543.1,0.09905022]
[1755433177431,1.61709131,4543.2,4543.1,0.09905022]
[1755433177930,1.61705044,4543.2,4543.1,0.09905022]
[1755433178526,1.61705044,4543.2,4543.1,0.49695022]
[1755433178730,0.43025044,4543.2,4543.1,0.66075022]
[1755433178929,0.83145044,4543.2,4543.1,0.86565022]
[1755433179137,1.61705044,4543.2,4543.1,0.25665022]
[1755433180835,1.61705044,4543.2,4543.1,0.66075022]
[1755433181736,0.19173139,4544.7,4543.6,0.3214]
[1755433181737,0.6377,4543.7,4543.6,0.3214]
[1755433181942,0.83146465,4543.7,4543.6,0.7666]
[1755433182334,1.21126465,4543.7,4543.6,0.7666]
[1755433183035,0.19376465,4543.7,4543.6,0.5617]
[1755433183338,1.21126465,4543.7,4543.6,0.7666]
[1755433183527,1.61706465,4543.7,4543.6,0.5617]
[1755433184739,1.61706465,4543.7,4543.4,20.066]
[1755433184940,1.4233,4543.7,4543.6,0.5617]
[1755433185136,1.61713697,4543.7,4543.6,0.5617]
[1755433185537,2.25437226,4543.7,4543.6,0.5617]
[1755433185734,2.25437226,4543.7,4543.4,20.066]
[1755433185931,0.5627,4543.5,4543.1,0.09905022]
[1755433186136,1.4233,4543.2,4543.1,0.09905022]
[1755433186435,1.4233,4543.2,4543.1,0.66075022]
[1755433186643,2.25438,4543.2,4543.1,0.66075022]
[1755433187138,2.25437956,4543.2,4543.1,0.66075022]
[1755433188741,2.25437956,4543.2,4543.1,0.09905022]
[1755433190044,2.25437956,4543.2,4543.1,0.50945022]
[1755433191035,2.25437956,4543.2,4543.1,0.66885022]
[1755433191843,1.96597574,4545.1,4543.1,0.66885022]
[1755433191844,1.11853934,4544.8,4544.7,0.1001]
[1755433192146,0.4053,4546.0,4544.7,52.86064]
[1755433192344,0.241,4545.9,4545.7,0.43977]
[1755433192537,1.0865,4545.9,4545.7,0.43977]
[1755433192736,1.4567,4545.8,4545.7,0.43977]
[1755433192949,1.4567,4545.8,4545.7,20.89468256]
[1755433193341,1.0865,4545.8,4545.7,0.64168256]
[1755433193541,1.0865,4545.8,4545.7,20.89268256]
[1755433193955,1.4567,4545.8,4545.7,20.69077]
[1755433194445,1.4567,4545.8,4545.6,3.2078]
[1755433194648,0.5907,4545.6,4545.5,20.68978]
[1755433194852,1.4567,4545.6,4545.5,20.68778]
[1755433195146,1.4567,4545.6,4545.5,20.248]
[1755433195543,1.4567,4545.6,4545.0,3.2078]
[1755433195544,0.6601,4545.5,4545.0,3.2078]
[1755433195745,1.4567,4545.2,4545.0,3.2078]
[1755433195948,1.0303,4545.1,4545.0,3.2078]
[1755433196149,1.4567,4545.1,4545.0,3.2078]
[1755433196945,0.5907,4545.1,4544.5,23.4508]
[1755433197249,0.022,4545.2,4544.5,23.4508]
[1755433197250,1.2157,4544.6,4544.5,23.4508]
[1755433197451,1.4567,4544.6,4544.5,23.4508]
[1755433198043,1.4567,4544.6,4544.5,3.2078]
[1755433199946,0.866,4544.5,4543.9,23.4438]
[1755433200247,1.4787,4544.0,4543.9,3.2078]
[1755433200451,1.4787,4544.0,4543.1,0.09905022]
[1755433200452,0.5907,4543.2,4543.1,0.09905022]
[1755433200648,1.4567,4543.2,4543.1,0.09905022]
[1755433205154,1.0343,4543.2,4543.1,0.09905022]
[1755433205343,0.6641,4543.2,4543.1,0.09905022]
[1755433205547,0.6601,4543.2,4543.1,0.09905022]
[1755433205947,1.4567,4543.2,4543.1,0.09905022]
[1755433207954,1.0865,4543.2,4543.1,0.09905022]
[1755433208153,0.241,4543.2,4543.1,0.09905022]
[1755433208354,0.1643,4543.6,4543.1,0.53906022]
[1755433208656,0.241,4543.3,4543.1,0.09905022]
[1755433208857,0.2548,4543.6,4543.1,0.09905022]
[1755433208858,0.241,4543.2,4543.1,0.09905022]
[1755433209051,0.6601,4543.2,4543.1,0.09905022]
[1755433209251,0.4958,4543.2,4543.1,0.09905022]
[1755433209459,0.241,4543.2,4543.1,0.09905022]
[1755433210150,0.866,4544.5,4543.1,0.09905022]
[1755433210353,0.866,4544.3,4543.4,3.2078]
[1755433210554,3.2078,4544.7,4543.5,0.43998]
[1755433210755,1.0865,4544.4,4543.4,23.4358]
[1755433210959,0.8317,4544.3,4543.9,3.2078]
[1755433211255,0.241,4544.2,4543.9,3.64773]
[1755433211559,0.241,4544.0,4543.9,3.2078]
[1755433212059,0.4958,4544.0,4543.9,3.2078]
[1755433212452,0.241,4544.0,4543.9,3.2078]
[1755433212666,0.241,4544.3,4544.1,0.43992]
[1755433212854,0.241,4544.3,4543.9,23.4318]
[1755433212855,0.241,4544.3,4544.0,0.43992]
[1755433213053,0.2548,4544.3,4544.0,0.43992]
[1755433213360,0.241,4544.1,4544.0,0.43992]
[1755433214154,0.8455,4545.1,4544.0,4.12181]
[1755433214351,0.8455,4545.1,4544.4,3.2078]
[1755433214352,0.241,4545.0,4544.4,3.2078]
[1755433214549,0.3319,4544.6,4544.5,20.217]
[1755433214752,1.4567,4544.6,4544.5,20.217]
[1755433215054,1.4567,4544.5,4544.4,3.2078]
[1755433215254,1.4567,4544.5,4544.3,20.22]
[1755433215559,1.4567,4544.4,4544.3,20.221]
[1755433216054,0.4264,4544.0,4543.9,3.2078]
[1755433216258,1.4567,4544.0,4543.9,3.2078]
[1755433216862,1.0865,4544.0,4543.9,3.2078]
[1755433217964,1.4472,4544.0,4543.9,3.2078]
[1755433221963,0.5907,4544.0,4543.6,20.207]
[1755433222259,1.4347,4543.7,4543.6,20.207]
[1755433222964,1.4347,4543.2,4542.8,3.2078]
[1755433223164,1.4347,4543.2,4543.1,20.30505022]
[1755433225664,1.4347,4543.2,4543.1,20.30005022]
[1755433228157,1.4347,4543.2,4543.1,0.09905022]
[1755433228363,1.4347,4543.2,4543.1,20.29505022]
[1755433228566,1.4347,4543.2,4543.1,0.09905022]
[1755433229964,1.074,4543.2,4543.1,0.09905022]
[1755433230169,0.4996,4543.2,4543.1,0.09905022]
[1755433230669,1.074,4543.2,4543.1,0.09905022]
[1755433230863,1.4347,4543.2,4543.1,0.09905022]
[1755433244686,1.1500948,4543.2,4542.3,23.3618]
[1755433244985,1.4347,4542.4,4542.3,23.4609]
[1755433245384,1.4347,4542.4,4542.3,3.3069]
[1755433246583,1.4347,4542.4,4542.3,3.4655]
[1755433250894,1.4347,4542.4,4542.3,23.6135]
[1755433251892,0.2525,4543.1,4542.3,23.6135]
[1755433252198,1.4269,4542.9,4542.8,0.2553]
[1755433252388,2.00350521,4542.9,4542.8,0.2553]
[1755433253403,2.00350521,4542.9,4542.8,0.0982]
[1755433253692,1.14270521,4542.9,4542.5,0.0982]
[1755433253899,1.4269,4542.6,4542.5,0.2553]
[1755433259195,0.5042,4542.6,4542.5,0.2553]
[1755433259395,3.2078,4543.3,4542.5,0.2553]
[1755433259597,0.2517,4543.7,4542.8,3.2078]
[1755433259801,0.3566,4542.8,4542.2,23.442]
[1755433260002,1.4269,4542.3,4542.2,23.5991]
[1755433260501,1.4269,4542.3,4542.2,23.3438]
[1755433261404,1.4269,4542.3,4542.2,23.3488]
[1755433261603,1.4269,4542.3,4542.2,3.2078]
[1755433262103,1.4269,4542.3,4542.2,3.306]
[1755433262404,1.4269,4542.3,4542.2,3.2078]
[1755433263302,1.42304752,4542.3,4542.2,3.2078]
[1755433263499,1.42304752,4542.3,4542.2,23.3498]
[1755433263703,1.42304752,4542.3,4542.2,3.2078]
[1755433263899,1.42304752,4542.3,4542.2,23.444]
[1755433264102,1.06644752,4542.3,4542.2,3.4683]
[1755433264303,1.42304752,4542.3,4542.2,23.6053]
[1755433267808,1.42304752,4542.3,4542.2,23.3448]
[1755433268209,1.42304752,4542.3,4542.2,3.2078]
[1755433268503,0.5042,4542.9,4542.5,0.44007]
[1755433268702,1.0703,4542.9,4542.8,0.1623]
[1755433268904,2.00434437,4542.9,4542.8,0.2605]
[1755433269108,2.00434437,4542.9,4542.8,20.131]
[1755433270601,2.00434437,4542.9,4542.8,20.3915]
[1755433270800,2.00434437,4542.9,4542.8,0.0982]
[1755433271004,2.00434437,4542.9,4542.8,20.127]
[1755433271905,2.00434437,4542.9,4542.8,20.2252]
[1755433272906,2.00434437,4542.9,4542.8,20.3875]
[1755433273911,0.82914437,4542.9,4542.8,20.3875]
[1755433274211,0.8243,4543.6,4543.5,0.2605]
[1755433274519,0.2517,4543.6,4543.5,20.3888]
[1755433274711,0.5042,4543.6,4543.5,20.3888]
[1755433275216,0.2517,4543.6,4543.5,20.3888]
[1755433275416,0.5042,4543.6,4543.5,20.3888]
[1755433275611,0.5042,4543.6,4543.5,20.3855]
[1755433276420,1.4269,4544.1,4544.0,0.2605]
[1755433276614,2.00207809,4544.1,4544.0,0.2605]
[1755433277214,1.4269,4544.1,4544.0,0.2605]
[1755433277917,1.4269,4544.1,4544.0,0.2612]
[1755433279615,0.1689,4543.8,4543.7,20.2138]
[1755433279815,1.411,4543.8,4543.7,20.115]
[1755433280418,0.579,4543.8,4543.4,0.0988]
[1755433280623,0.1,4544.2,4542.1,3.6652]
[1755433280624,0.5728,4542.2,4542.1,3.6652]
[1755433280812,1.411,4542.2,4542.1,3.6857]
[1755433281208,0.2413,4542.2,4542.1,3.9345]
[1755433281424,0.9329,4542.7,4542.6,0.4779]
[1755433281616,0.3539,4542.6,4542.1,3.2078]
[1755433281821,1.411,4542.2,4542.1,3.3731]
[1755433282121,1.411,4542.2,4542.1,23.8637]
[1755433282324,1.411,4542.2,4542.1,23.3858]
[1755433282623,1.411,4542.2,4542.1,23.9318]
[1755433283323,1.411,4542.2,4542.1,23.3858]
[1755433283520,1.411,4542.2,4542.1,24.1911]
[1755433283824,1.411,4542.2,4542.1,24.2444]
[1755433284024,1.0571,4542.2,4542.1,24.4932]
[1755433284324,1.411,4542.2,4542.1,24.4932]
[1755433285619,1.411,4542.2,4542.1,24.93331]
[1755433285828,1.411,4542.2,4542.1,4.75531]
[1755433286122,1.0571,4542.2,4542.1,24.92531]
[1755433286824,1.0571,4542.2,4542.1,24.4852]
[1755433287024,1.411,4542.2,4542.1,24.4852]
[1755433287529,1.411,4542.2,4542.1,24.2364]
[1755433287719,1.411,4542.2,4542.1,24.4852]
[1755433287921,0.9329,4542.7,4542.6,0.4246]
[1755433288120,0.9329,4542.7,4542.6,0.8053]
[1755433288721,1.0571,4542.7,4542.6,21.71046]
[1755433288926,1.0571,4543.0,4542.9,0.4574]
[1755433289130,1.411,4543.0,4542.9,1.1074]
[1755433289820,1.0571,4543.6,4543.5,0.1653]
[1755433290025,1.411,4543.6,4543.5,0.546]
[1755433290221,0.579,4543.6,4542.6,3.2078]
[1755433290426,1.411,4542.7,4542.6,24.2284]
[1755433290617,1.411,4542.7,4542.4,0.3807]
[1755433290817,1.411,4542.6,4542.5,0.4246]
[1755433291022,0.579,4542.4,4542.3,0.546]
[1755433291218,0.4781,4542.4,4542.3,0.8053]
[1755433291424,1.411,4542.4,4542.3,0.8586]
[1755433291623,1.411,4542.4,4542.3,21.0486]
[1755433292126,1.411,4542.4,4542.3,0.8586]
[1755433292317,1.411,4542.4,4542.3,21.0466]
[1755433292523,1.411,4542.4,4542.3,21.0486]
[1755433292724,1.411,4542.4,4542.3,21.2974]
[1755433293321,1.411,4542.4,4542.3,20.19]
[1755433293521,1.411,4542.4,4542.3,0.1653]
[1755433293723,1.411,4542.4,4542.3,20.3523]
[1755433293919,1.411,4542.4,4542.3,20.9923]
[1755433294123,1.411,4542.4,4542.3,0.8053]
[1755433294729,1.411,4542.4,4542.3,0.8381]
[1755433295530,1.411,4542.4,4542.3,0.8586]
[1755433295931,0.1,4544.2,4542.4,0.44008]
[1755433295932,0.832,4543.7,4542.4,0.44008]
[1755433296121,0.57341288,4543.6,4542.4,0.46058]
[1755433296320,0.3377,4542.5,4542.4,0.91798]
[1755433296531,1.0571,4542.5,4542.4,1.16678]
[1755433296930,0.4781,4542.9,4542.7,0.44005]
[1755433297230,0.579,4542.9,4542.8,0.8586]
[1755433297628,1.411,4542.9,4542.8,0.8381]
[1755433297827,1.411,4542.9,4542.8,0.8053]
[1755433298228,1.411,4542.9,4542.5,0.46057]
[1755433298229,1.411,4542.9,4542.5,0.0205]
[1755433298427,1.411,4542.6,4542.4,20.179]
[1755433298632,1.411,4542.5,4542.4,20.179]
[1755433298832,0.579,4542.5,4542.1,3.6684]
[1755433299021,0.579,4542.4,4542.3,0.1653]
[1755433299234,0.579,4542.4,4542.2,20.176]
[1755433299530,1.0009,4542.3,4542.2,0.8053]
[1755433299726,1.411,4542.3,4542.2,21.0141]